[Event "Lidkoping Open 2019"]
[Site "Lidkoping"]
[Date "2019.08.24"]
[Round "2.14"]
[White "Lunde, Sigmund"]
[Black "Johnson, Daniel"]
[Result "0-1"]
[ECO "D00"]
[WhiteElo "1806"]
[BlackElo "2201"]
[Annotator "NA"]
[PlyCount "106"]
[EventDate "2019.08.19"]
[EventType "swiss"]
[EventCountry "SWE"]
[SourceTitle "playchess.com"]
[Source "ChessBase"]
[SourceQuality "1"]
[TimeControl "2700+10"]

1. d4 {[%emt 0:00:00]} d5 {[%emt 0:02:55]} 2. Bf4 {[%emt 0:00:44]} Nf6 {[%emt 0:00:07]} 3. h3 {[%emt 0:00:07]} c5 {[%emt 0:00:14]} 4. Nf3 {[%emt 0:02:22]} Nc6 {[%emt 0:00:55]} 5. c3 {[%emt 0:01:45]} Qb6 {[%emt 0:02:12]} 6. b3 {[%emt 0:01:03]} Bf5 {[%emt 0:01:32]} 7. e3 {[%emt 0:01:06]} h6 {[%emt 0:01:51]} 8. Bd3 {[%emt 0:00:31]} Ne4 {[%emt 0:02:04]} 9. Ne5 {[%emt 0:02:48]} e6 {[%emt 0:04:23]} 10. O-O {[%emt 0:01:48]} Be7 {[%emt 0:02:48]} 11. f3 {[%emt 0:05:13]} Nd6 {[%emt 0:06:14]} 12. Nxc6 {[%emt 0:04:03]} Bxd3 {[%emt 0:04:18]} 13. dxc5 {[%emt 0:03:59]} Qxc5 {[%emt 0:01:03]} 14. Qxd3 {[%emt 0:00:32]} Qxc6 {[%emt 0:00:23]} 15. Nd2 {[%emt 0:00:37]} O-O {[%emt 0:01:22]} 16. Rac1 {[%emt 0:00:46]} Rac8 {[%emt 0:01:00]} 17. Rfe1 {[%emt 0:03:12]} Rfd8 {[%emt 0:01:26]} 18. Kh1 {[%emt 0:03:55]} b5 {[%emt 0:00:56]} 19. Be5 {[%emt 0:02:08]} a6 {[%emt 0:03:01]} 20. Qe2 {[%emt 0:04:32]} Nf5 {[%emt 0:02:28]} 21. e4 {[%emt 0:01:25]} Nh4 {[%emt 0:01:47]} 22. Bg3 {[%emt 0:01:34]} Ng6 {[%emt 0:01:29]} 23. e5 {[%emt 0:00:33]} Ba3 {[%emt 0:01:01]} 24. Rc2 {[%emt 0:00:14]} d4 {[%emt 0:00:21]} 25. Qe4 {[%emt 0:00:15]} dxc3 {[%emt 0:01:21]} 26. Nb1 {[%emt 0:00:31]} Qxe4 {[%emt 0:00:13]} 27. Rxe4 {[%emt 0:00:07]} Bb2 {[%emt 0:01:11]} 28. Re1 {[%emt 0:00:49]} b4 {[%emt 0:00:18]} 29. Kg1 {[%emt 0:01:11]} Ne7 {[%emt 0:00:07]} 30. Bh4 {[%emt 0:00:19]} g5 {[%emt 0:00:02]} 31. Bf2 {[%emt 0:00:02]} Rd7 {[%emt 0:00:31]} 32. Kf1 {[%emt 0:00:03]} Nd5 {[%emt 0:00:18]} 33. g3 {[%emt 0:00:08]} Ne7 {[%emt 0:00:02]} 34. Ke2 {[%emt 0:00:05]} Rcd8 {[%emt 0:00:03]} 35. Bb6 {[%emt 0:00:12]} Rb8 {[%emt 0:00:05]} 36. Be3 {[%emt 0:00:04]} Nf5 {[%emt 0:00:10]} 37. Bf2 {[%emt 0:00:03]} Rbd8 {[%emt 0:00:08]} 38. g4 {[%emt 0:00:46]} Ne7 {[%emt 0:00:02]} 39. a3 {[%emt 0:00:28]} a5 {[%emt 0:00:19]} 40. Bb6 {[%emt 0:00:23]} Rb8 {[%emt 0:00:01]} 41. Bxa5 {[%emt 0:00:03]} Nc6 {[%emt 0:00:02]} 42. Bxb4 {[%emt 0:00:08]} Nd4+ {[%emt 0:00:04]} 43. Kd1 {[%emt 0:00:07]} Nxf3+ {[%emt 0:00:25]} 44. Bd6 {[%emt 0:00:03]} Nxe1 {[%emt 0:00:09]} 45. Kxe1 {[%emt 0:00:02]} Rxb3 {[%emt 0:00:02]} 46. Ke2 {[%emt 0:00:07]} Ba1 {[%emt 0:00:22]} 47. Rc1 {[%emt 0:00:17]} Rdb7 {[%emt 0:00:18]} 48. Bb4 {[%emt 0:00:01]} Bb2 {[%emt 0:00:11]} 49. Rc2 {[%emt 0:00:41]} Bxa3 {[%emt 0:00:26]} 50. Bxa3 {[%emt 0:00:14]} Rxb1 {[%emt 0:00:02]} 51. Rxc3 {[%emt 0:00:05]} R1b3 {[%emt 0:00:09]} 52. Rc8+ {[%emt 0:00:03]} Kh7 {[%emt 0:00:05]} 53. Bc1 {[%emt 0:00:16]} Rxh3 {[%emt 0:00:13]} 0-1

[Event "Lidkoping Open 2019"]
[Site "Lidkoping"]
[Date "2019.08.24"]
[Round "2.15"]
[White "Svensson, Leif"]
[Black "Strom-Engdahl, Alexander"]
[Result "0-1"]
[ECO "C13"]
[WhiteElo "2027"]
[BlackElo "1858"]
[Annotator "NA"]
[PlyCount "112"]
[EventDate "2019.08.19"]
[EventType "swiss"]
[EventCountry "SWE"]
[SourceTitle "playchess.com"]
[Source "ChessBase"]
[SourceQuality "1"]
[TimeControl "2700+10"]

1. d4 {[%emt 0:00:00]} Nf6 {[%emt 0:00:08]} 2. Nc3 {[%emt 0:00:00]} e6 {[%emt 0:00:34]} 3. e4 {[%emt 0:00:06]} d5 {[%emt 0:00:05]} 4. Bg5 {[%emt 0:00:07]} dxe4 {[%emt 0:00:07]} 5. Nxe4 {[%emt 0:00:15]} Be7 {[%emt 0:00:05]} 6. Bxf6 {[%emt 0:00:06]} Bxf6 {[%emt 0:00:05]} 7. Nf3 {[%emt 0:00:07]} O-O {[%emt 0:01:08]} 8. Qd2 {[%emt 0:00:10]} Nc6 {[%emt 0:01:53]} 9. c3 {[%emt 0:00:35]} g6 {[%emt 0:04:20]} 10. Nxf6+ {[%emt 0:04:17]} Qxf6 {[%emt 0:00:23]} 11. O-O-O {[%emt 0:00:06]} Rd8 {[%emt 0:01:23]} 12. Bc4 {[%emt 0:02:03]} Na5 {[%emt 0:03:54]} 13. Bd3 {[%emt 0:03:54]} b6 {[%emt 0:02:32]} 14. Be4 {[%emt 0:03:45]} Bb7 {[%emt 0:00:19]} 15. Bxb7 {[%emt 0:01:18]} Nxb7 {[%emt 0:00:12]} 16. Ne5 {[%emt 0:02:40]} c5 {[%emt 0:00:45]} 17. Ng4 {[%emt 0:00:42]} Qe7 {[%emt 0:04:47]} 18. Qf4 {[%emt 0:02:50]} h5 {[%emt 0:03:18]} 19. Ne5 {[%emt 0:00:20]} Rac8 {[%emt 0:00:18]} 20. h4 {[%emt 0:03:21]} cxd4 {[%emt 0:00:49]} 21. Rxd4 {[%emt 0:00:08]} Rxd4 {[%emt 0:05:07]} 22. Qxd4 {[%emt 0:00:02]} Rd8 {[%emt 0:00:13]} 23. Qf4 {[%emt 0:00:10]} Nc5 {[%emt 0:00:21]} 24. Kc2 {[%emt 0:00:57]} Qb7 {[%emt 0:04:59]} 25. Re1 {[%emt 0:00:57]} Kg7 {[%emt 0:00:47]} 26. g4 {[%emt 0:04:42]} hxg4 {[%emt 0:02:01]} 27. Nxg4 {[%emt 0:00:53]} Qe7 {[%emt 0:00:41]} 28. Re3 {[%emt 0:01:47]} Rd5 {[%emt 0:01:03]} 29. Ne5 {[%emt 0:06:38]} Qf6 {[%emt 0:00:51]} 30. Qg3 {[%emt 0:01:00]} Qf5+ {[%emt 0:00:28]} 31. Nd3 {[%emt 0:02:18]} Nxd3 {[%emt 0:01:04]} 32. Rxd3 {[%emt 0:00:05]} Rxd3 {[%emt 0:00:04]} 33. Qxd3 {[%emt 0:00:04]} Qxf2+ {[%emt 0:00:08]} 34. Kb3 {[%emt 0:00:00]} Qxh4 {[%emt 0:00:15]} 35. Qd7 {[%emt 0:00:02]} a5 {[%emt 0:00:45]} 36. Qb5 {[%emt 0:00:18]} Qf2 {[%emt 0:00:37]} 37. Qe5+ {[%emt 0:00:02]} Qf6 {[%emt 0:00:16]} 38. Qb5 {[%emt 0:00:11]} Qd8 {[%emt 0:00:06]} 39. Qe5+ {[%emt 0:00:05]} Kg8 {[%emt 0:00:04]} 40. Kc2 {[%emt 0:00:07]} Qc8 {[%emt 0:01:01]} 41. a4 {[%emt 0:00:07]} Qc6 {[%emt 0:00:36]} 42. Qb8+ {[%emt 0:00:08]} Kg7 {[%emt 0:00:01]} 43. Qe5+ {[%emt 0:00:02]} f6 {[%emt 0:00:06]} 44. Qd4 {[%emt 0:00:02]} e5 {[%emt 0:00:21]} 45. Qd8 {[%emt 0:00:05]} Qxa4+ {[%emt 0:00:02]} 46. Kd2 {[%emt 0:00:06]} Qf4+ {[%emt 0:00:16]} 47. Kc2 {[%emt 0:00:03]} Qf5+ {[%emt 0:00:17]} 48. Kd2 {[%emt 0:00:33]} Qe6 {[%emt 0:00:20]} 49. Qc7+ {[%emt 0:00:02]} Kh6 {[%emt 0:00:01]} 50. Qb8 {[%emt 0:00:02]} f5 {[%emt 0:00:31]} 51. Qh8+ {[%emt 0:00:10]} Kg5 {[%emt 0:00:03]} 52. Qh2 {[%emt 0:00:07]} Qd5+ {[%emt 0:00:05]} 53. Kc2 {[%emt 0:00:08]} Qe4+ {[%emt 0:00:01]} 54. Kb3 {[%emt 0:00:01]} b5 {[%emt 0:00:36]} 55. Qg1+ {[%emt 0:00:12]} Kh6 {[%emt 0:00:05]} 56. Qb6 {[%emt 0:00:28]} Qa4# {[%emt 0:00:04]} 0-1

[Event "Lidkoping Open 2019"]
[Site "Lidkoping"]
[Date "2019.08.24"]
[Round "2.16"]
[White "Platkovs, Daniils"]
[Black "Kleimark, Anders"]
[Result "0-1"]
[ECO "C55"]
[WhiteElo "1386"]
[BlackElo "2016"]
[Annotator "NA"]
[PlyCount "124"]
[EventDate "2019.08.19"]
[EventType "swiss"]
[EventCountry "SWE"]
[SourceTitle "playchess.com"]
[Source "ChessBase"]
[SourceQuality "1"]
[TimeControl "2700+10"]

1. e4 {[%emt 0:00:00]} e5 {[%emt 0:00:03]} 2. Nf3 {[%emt 0:00:00]} Nc6 {[%emt 0:00:09]} 3. Bc4 {[%emt 0:00:00]} Nf6 {[%emt 0:00:09]} 4. d3 {[%emt 0:00:04]} Be7 {[%emt 0:00:17]} 5. c3 {[%emt 0:00:18]} O-O {[%emt 0:01:08]} 6. O-O {[%emt 0:00:08]} d5 {[%emt 0:00:47]} 7. exd5 {[%emt 0:00:13]} Nxd5 {[%emt 0:00:09]} 8. Re1 {[%emt 0:00:34]} Bg4 {[%emt 0:01:48]} 9. Nbd2 {[%emt 0:00:42]} Nb6 {[%emt 0:01:58]} 10. Bb5 {[%emt 0:01:45]} f6 {[%emt 0:02:20]} 11. Ne4 {[%emt 0:03:20]} Nb8 {[%emt 0:02:53]} 12. Be3 {[%emt 0:03:52]} a6 {[%emt 0:02:11]} 13. Bxb6 {[%emt 0:02:27]} axb5 {[%emt 0:02:23]} 14. Be3 {[%emt 0:00:15]} Qd5 {[%emt 0:01:28]} 15. h3 {[%emt 0:03:44]} Be6 {[%emt 0:03:39]} 16. Qc2 {[%emt 0:01:14]} Rxa2 {[%emt 0:03:29]} 17. c4 {[%emt 0:01:19]} bxc4 {[%emt 0:00:07]} 18. Nc3 {[%emt 0:00:29]} cxd3 {[%emt 0:01:07]} 19. Nxd5 {[%emt 0:01:24]} dxc2 {[%emt 0:00:12]} 20. Nxe7+ {[%emt 0:00:27]} Kf7 {[%emt 0:00:07]} 21. Rxa2 {[%emt 0:00:21]} Bxa2 {[%emt 0:00:27]} 22. Nf5 {[%emt 0:01:45]} Rd8 {[%emt 0:02:15]} 23. Bd2 {[%emt 0:00:45]} Bd5 {[%emt 0:01:07]} 24. Bc1 {[%emt 0:04:39]} Nc6 {[%emt 0:04:03]} 25. Ne3 {[%emt 0:00:45]} Be4 {[%emt 0:04:39]} 26. b3 {[%emt 0:07:37]} Nb4 {[%emt 0:02:11]} 27. Ba3 {[%emt 0:01:20]} Nd3 {[%emt 0:03:09]} 28. Rf1 {[%emt 0:01:21]} Nf4 {[%emt 0:00:15]} 29. Kh2 {[%emt 0:01:39]} Rd3 {[%emt 0:01:03]} 30. Nxc2 {[%emt 0:02:42]} Rxb3 {[%emt 0:00:20]} 31. Nd2 {[%emt 0:00:35]} Bxc2 {[%emt 0:00:25]} 32. Nxb3 {[%emt 0:00:14]} Bxb3 {[%emt 0:00:02]} 33. Rc1 {[%emt 0:00:27]} Ne6 {[%emt 0:00:10]} 34. Rc3 {[%emt 0:00:21]} Bd5 {[%emt 0:00:03]} 35. Rd3 {[%emt 0:00:46]} c6 {[%emt 0:00:20]} 36. Rd2 {[%emt 0:00:13]} b5 {[%emt 0:00:12]} 37. Rb2 {[%emt 0:00:13]} Nf4 {[%emt 0:00:07]} 38. g3 {[%emt 0:00:24]} Ne6 {[%emt 0:00:01]} 39. Kg1 {[%emt 0:00:06]} Nd4 {[%emt 0:00:07]} 40. Kf1 {[%emt 0:00:25]} Ke6 {[%emt 0:00:07]} 41. Ke1 {[%emt 0:00:23]} Kd7 {[%emt 0:00:23]} 42. Kd2 {[%emt 0:00:08]} Ne6 {[%emt 0:00:17]} 43. Ke3 {[%emt 0:00:18]} Kc7 {[%emt 0:00:11]} 44. Rc2 {[%emt 0:00:13]} Kb6 {[%emt 0:00:07]} 45. f4 {[%emt 0:00:04]} exf4+ {[%emt 0:00:14]} 46. gxf4 {[%emt 0:00:02]} Bc4 {[%emt 0:00:12]} 47. f5 {[%emt 0:00:22]} Nc7 {[%emt 0:00:06]} 48. Bf8 {[%emt 0:00:11]} g6 {[%emt 0:00:08]} 49. Rf2 {[%emt 0:00:22]} g5 {[%emt 0:00:10]} 50. Be7 {[%emt 0:00:11]} Nd5+ {[%emt 0:00:01]} 51. Kd4 {[%emt 0:00:05]} Nxe7 {[%emt 0:00:02]} 52. Rf3 {[%emt 0:00:08]} Nd5 {[%emt 0:00:06]} 53. Ra3 {[%emt 0:00:17]} Bf1 {[%emt 0:00:07]} 54. Ke4 {[%emt 0:00:13]} b4 {[%emt 0:00:06]} 55. Ra8 {[%emt 0:00:11]} Kc5 {[%emt 0:00:06]} 56. Rh8 {[%emt 0:00:08]} b3 {[%emt 0:00:10]} 57. Rb8 {[%emt 0:00:17]} Bb5 {[%emt 0:00:12]} 58. Rxb5+ {[%emt 0:00:37]} Kxb5 {[%emt 0:00:04]} 59. Kd3 {[%emt 0:00:02]} Kb4 {[%emt 0:00:05]} 60. Kd2 {[%emt 0:00:03]} Nc3 {[%emt 0:00:08]} 61. Kc1 {[%emt 0:00:05]} Ka3 {[%emt 0:00:04]} 62. h4 {[%emt 0:00:06]} gxh4 {[%emt 0:00:02]} 0-1

[Event "Lidkoping Open 2019"]
[Site "Lidkoping"]
[Date "2019.08.24"]
[Round "2.17"]
[White "Muntean, Felix"]
[Black "Mattsson, Michael"]
[Result "0-1"]
[ECO "C55"]
[WhiteElo "1389"]
[BlackElo "2011"]
[Annotator "NA"]
[PlyCount "106"]
[EventDate "2019.08.19"]
[EventType "swiss"]
[EventCountry "SWE"]
[SourceTitle "playchess.com"]
[Source "ChessBase"]
[SourceQuality "1"]
[TimeControl "2700+10"]

1. e4 {[%emt 0:00:00]} e5 {[%emt 0:00:00]} 2. Nf3 {[%emt 0:00:03]} Nc6 {[%emt 0:00:00]} 3. Bc4 {[%emt 0:00:04]} Nf6 {[%emt 0:00:00]} 4. d3 {[%emt 0:00:07]} Be7 {[%emt 0:00:20]} 5. Nc3 {[%emt 0:00:06]} O-O {[%emt 0:00:06]} 6. Be3 {[%emt 0:00:21]} d6 {[%emt 0:00:50]} 7. Nd5 {[%emt 0:00:38]} Nxd5 {[%emt 0:00:56]} 8. Bxd5 {[%emt 0:00:10]} Be6 {[%emt 0:00:13]} 9. Bb3 {[%emt 0:01:16]} Bxb3 {[%emt 0:00:15]} 10. axb3 {[%emt 0:00:04]} f5 {[%emt 0:00:13]} 11. exf5 {[%emt 0:00:13]} Rxf5 {[%emt 0:00:02]} 12. d4 {[%emt 0:00:02]} e4 {[%emt 0:00:44]} 13. Nd2 {[%emt 0:00:14]} d5 {[%emt 0:00:09]} 14. Qg4 {[%emt 0:01:01]} Qd7 {[%emt 0:01:15]} 15. O-O {[%emt 0:00:52]} Nb4 {[%emt 0:00:54]} 16. c3 {[%emt 0:00:55]} Nc2 {[%emt 0:02:08]} 17. Bh6 {[%emt 0:00:37]} Bf6 {[%emt 0:02:15]} 18. Rac1 {[%emt 0:00:11]} Kh8 {[%emt 0:03:36]} 19. Bf4 {[%emt 0:01:03]} e3 {[%emt 0:02:05]} 20. Rxc2 {[%emt 0:03:06]} exd2 {[%emt 0:00:55]} 21. Rxd2 {[%emt 0:00:14]} h5 {[%emt 0:03:33]} 22. Qh3 {[%emt 0:00:36]} Rd8 {[%emt 0:00:28]} 23. Bxc7 {[%emt 0:00:23]} Re8 {[%emt 0:01:42]} 24. Rdd1 {[%emt 0:00:56]} Re4 {[%emt 0:00:27]} 25. Bg3 {[%emt 0:00:54]} g6 {[%emt 0:08:58]} 26. Rfe1 {[%emt 0:01:07]} Qb5 {[%emt 0:00:19]} 27. f3 {[%emt 0:00:32]} Re2 {[%emt 0:02:00]} 28. Be5 {[%emt 0:00:54]} Bxe5 {[%emt 0:01:49]} 29. dxe5 {[%emt 0:00:21]} Rfxe5 {[%emt 0:03:54]} 30. Qh4 {[%emt 0:00:59]} Qxb3 {[%emt 0:01:08]} 31. Qf6+ {[%emt 0:00:41]} Kh7 {[%emt 0:00:18]} 32. Qf7+ {[%emt 0:00:27]} Kh6 {[%emt 0:00:39]} 33. Qf8+ {[%emt 0:00:35]} Kh7 {[%emt 0:00:08]} 34. Qf7+ {[%emt 0:00:39]} Kh6 {[%emt 0:00:03]} 35. h4 {[%emt 0:01:56]} Qb6+ {[%emt 0:06:52]} 36. Kh2 {[%emt 0:00:27]} Qe6 {[%emt 0:00:55]} 37. Qxe6 {[%emt 0:02:02]} Rxe6 {[%emt 0:01:01]} 38. Rxe2 {[%emt 0:00:02]} Rxe2 {[%emt 0:00:00]} 39. Rxd5 {[%emt 0:00:03]} Rxb2 {[%emt 0:00:00]} 40. Rd7 {[%emt 0:00:04]} a5 {[%emt 0:00:00]} 41. Rd4 {[%emt 0:00:46]} b5 {[%emt 0:00:00]} 42. c4 {[%emt 0:00:06]} b4 {[%emt 0:00:00]} 43. c5 {[%emt 0:00:04]} Rc2 {[%emt 0:00:00]} 44. Rd5 {[%emt 0:00:35]} b3 {[%emt 0:00:03]} 45. c6 {[%emt 0:00:28]} b2 {[%emt 0:00:11]} 46. Rb5 {[%emt 0:00:29]} a4 {[%emt 0:00:12]} 47. Rxb2 {[%emt 0:00:09]} Rxb2 {[%emt 0:00:02]} 48. c7 {[%emt 0:00:02]} Rc2 {[%emt 0:00:01]} 49. Kh3 {[%emt 0:00:12]} Rxc7 {[%emt 0:00:02]} 50. g4 {[%emt 0:00:02]} hxg4+ {[%emt 0:00:01]} 51. fxg4 {[%emt 0:00:02]} Rc3+ {[%emt 0:00:02]} 52. Kg2 {[%emt 0:00:02]} g5 {[%emt 0:00:01]} 53. h5 {[%emt 0:00:03]} a3 {[%emt 0:00:01]} 0-1

[Event "Lidkoping Open 2019"]
[Site "Lidkoping"]
[Date "2019.08.24"]
[Round "2.18"]
[White "Nygren, Kim"]
[Black "Isacsson, Jorgen"]
[Result "1/2-1/2"]
[ECO "B06"]
[WhiteElo "2171"]
[BlackElo "1731"]
[Annotator "NA"]
[PlyCount "35"]
[EventDate "2019.08.19"]
[EventType "swiss"]
[EventCountry "SWE"]
[SourceTitle "playchess.com"]
[Source "ChessBase"]
[SourceQuality "1"]
[TimeControl "2700+10"]

1. e4 {[%emt 0:00:00]} d6 {[%emt 0:00:00]} 2. d4 {[%emt 0:00:00]} g6 {[%emt 0:00:02]} 3. Nc3 {[%emt 0:00:00]} Bg7 {[%emt 0:00:04]} 4. f4 {[%emt 0:00:06]} a6 {[%emt 0:00:19]} 5. Bc4 {[%emt 0:00:11]} b5 {[%emt 0:00:03]} 6. Bb3 {[%emt 0:00:10]} Bb7 {[%emt 0:00:04]} 7. Nf3 {[%emt 0:00:12]} e6 {[%emt 0:01:55]} 8. f5 {[%emt 0:01:18]} d5 {[%emt 0:12:09]} 9. fxe6 {[%emt 0:00:54]} fxe6 {[%emt 0:00:51]} 10. Ng5 {[%emt 0:00:18]} dxe4 {[%emt 0:08:56]} 11. Nxe6 {[%emt 0:01:38]} Qe7 {[%emt 0:00:19]} 12. O-O {[%emt 0:00:29]} Nf6 {[%emt 0:01:42]} 13. Bg5 {[%emt 0:00:36]} Rf8 {[%emt 0:02:35]} 14. Nxf8 {[%emt 0:00:53]} Qxf8 {[%emt 0:01:37]} 15. Nd5 {[%emt 0:01:19]} Bxd5 {[%emt 0:06:48]} 16. Bxd5 {[%emt 0:00:04]} Nxd5 {[%emt 0:00:00]} 17. Rxf8+ {[%emt 0:00:04]} Kxf8 {[%emt 0:00:02]} 18. Qg4 {[%emt 0:00:15]} 1/2-1/2

[Event "Lidkoping Open 2019"]
[Site "Lidkoping"]
[Date "2019.08.24"]
[Round "2.19"]
[White "Nordlund, Jim"]
[Black "Alfven, Jorgen"]
[Result "1-0"]
[ECO "B20"]
[WhiteElo "2130"]
[BlackElo "1871"]
[Annotator "NA"]
[PlyCount "103"]
[EventDate "2019.08.19"]
[EventType "swiss"]
[EventCountry "SWE"]
[SourceTitle "playchess.com"]
[Source "ChessBase"]
[SourceQuality "1"]
[TimeControl "2700+10"]

1. e4 {[%emt 0:00:00]} c5 {[%emt 0:00:00]} 2. d3 {[%emt 0:00:02]} Nc6 {[%emt 0:00:25]} 3. Be2 {[%emt 0:00:29]} d6 {[%emt 0:00:21]} 4. f4 {[%emt 0:00:20]} e6 {[%emt 0:00:57]} 5. Nf3 {[%emt 0:00:49]} g6 {[%emt 0:00:30]} 6. O-O {[%emt 0:00:25]} Bg7 {[%emt 0:00:02]} 7. c3 {[%emt 0:00:27]} Nge7 {[%emt 0:01:29]} 8. Be3 {[%emt 0:00:32]} f5 {[%emt 0:03:48]} 9. Nbd2 {[%emt 0:04:29]} O-O {[%emt 0:02:14]} 10. Qb3 {[%emt 0:02:27]} Na5 {[%emt 0:02:28]} 11. Qc2 {[%emt 0:00:58]} Bd7 {[%emt 0:02:20]} 12. Rad1 {[%emt 0:02:57]} Rc8 {[%emt 0:01:22]} 13. Nc4 {[%emt 0:03:27]} Qc7 {[%emt 0:07:51]} 14. g3 {[%emt 0:05:29]} b5 {[%emt 0:01:43]} 15. Ncd2 {[%emt 0:00:29]} h6 {[%emt 0:01:02]} 16. h4 {[%emt 0:02:54]} Nac6 {[%emt 0:04:52]} 17. Rc1 {[%emt 0:01:58]} a6 {[%emt 0:03:26]} 18. h5 {[%emt 0:01:46]} Be8 {[%emt 0:00:37]} 19. hxg6 {[%emt 0:02:26]} Bxg6 {[%emt 0:00:30]} 20. Nh4 {[%emt 0:00:25]} Bh7 {[%emt 0:00:48]} 21. Bf3 {[%emt 0:01:54]} Ng6 {[%emt 0:02:16]} 22. Nxg6 {[%emt 0:03:01]} Bxg6 {[%emt 0:00:02]} 23. Qd1 {[%emt 0:02:15]} Ne7 {[%emt 0:00:18]} 24. Qe2 {[%emt 0:00:23]} d5 {[%emt 0:01:02]} 25. e5 {[%emt 0:02:36]} Qd7 {[%emt 0:00:32]} 26. Qf2 {[%emt 0:00:34]} c4 {[%emt 0:02:58]} 27. Bc5 {[%emt 0:00:48]} cxd3 {[%emt 0:00:51]} 28. Nb3 {[%emt 0:00:20]} Rf7 {[%emt 0:00:30]} 29. Rfd1 {[%emt 0:00:13]} Nc6 {[%emt 0:00:28]} 30. Rxd3 {[%emt 0:00:17]} Qb7 {[%emt 0:00:42]} 31. Bd6 {[%emt 0:00:31]} Qa7 {[%emt 0:03:46]} 32. Nc5 {[%emt 0:00:37]} Nd8 {[%emt 0:00:00]} 33. b4 {[%emt 0:00:44]} Bf8 {[%emt 0:00:00]} 34. Bxf8 {[%emt 0:00:44]} Kxf8 {[%emt 0:00:00]} 35. Kf1 {[%emt 0:00:14]} Kg7 {[%emt 0:00:00]} 36. Ra1 {[%emt 0:00:17]} a5 {[%emt 0:00:00]} 37. Qe3 {[%emt 0:00:22]} Re7 {[%emt 0:00:00]} 38. Ke2 {[%emt 0:00:14]} Kh7 {[%emt 0:00:00]} 39. Rdd1 {[%emt 0:00:20]} Nf7 {[%emt 0:00:00]} 40. a3 {[%emt 0:00:06]} Rc6 {[%emt 0:00:00]} 41. Rh1 {[%emt 0:00:15]} Qc7 {[%emt 0:00:00]} 42. Rh2 {[%emt 0:00:15]} Kg7 {[%emt 0:00:00]} 43. Rah1 {[%emt 0:00:04]} Qa7 {[%emt 0:00:00]} 44. Kd3 {[%emt 0:00:37]} Qc7 {[%emt 0:00:00]} 45. Bh5 {[%emt 0:00:08]} Qa7 {[%emt 0:00:00]} 46. Bxg6 Kxg6 {[%emt 0:00:00]} 47. g4 {[%emt 0:00:06]} fxg4 {[%emt 0:00:15]} 48. f5+ {[%emt 0:00:23]} exf5 {[%emt 0:00:07]} 49. Rxh6+ {[%emt 0:00:04]} Kg7 {[%emt 0:00:21]} 50. e6 {[%emt 0:00:36]} Rxc5 {[%emt 0:01:12]} 51. Qd4+ {[%emt 0:00:10]} Kg8 {[%emt 0:00:55]} 52. Rh8+ {[%emt 0:00:03]} 1-0

[Event "Lidkoping Open 2019"]
[Site "Lidkoping"]
[Date "2019.08.24"]
[Round "2.21"]
[White "Mottang, Harald"]
[Black "Nordstrom, Felix"]
[Result "0-1"]
[ECO "A07"]
[WhiteElo "1559"]
[BlackElo "2060"]
[Annotator "NA"]
[PlyCount "92"]
[EventDate "2019.08.19"]
[EventType "swiss"]
[EventCountry "SWE"]
[SourceTitle "playchess.com"]
[Source "ChessBase"]
[SourceQuality "1"]
[TimeControl "2700+10"]

1. Nf3 {[%emt 0:00:00]} d5 {[%emt 0:00:00]} 2. c4 {[%emt 0:00:00]} d4 {[%emt 0:00:24]} 3. g3 {[%emt 0:00:00]} Nc6 {[%emt 0:00:19]} 4. Bg2 {[%emt 0:00:09]} e5 {[%emt 0:00:08]} 5. d3 {[%emt 0:00:23]} Nf6 {[%emt 0:00:28]} 6. a3 {[%emt 0:00:17]} a5 {[%emt 0:00:02]} 7. O-O {[%emt 0:00:21]} Be7 {[%emt 0:00:13]} 8. Bg5 {[%emt 0:01:15]} h6 {[%emt 0:00:30]} 9. Bxf6 {[%emt 0:00:31]} Bxf6 {[%emt 0:00:03]} 10. Nbd2 {[%emt 0:00:10]} O-O {[%emt 0:00:11]} 11. Ne4 {[%emt 0:01:01]} Be7 {[%emt 0:00:05]} 12. Rb1 {[%emt 0:02:03]} a4 {[%emt 0:00:23]} 13. Qc2 {[%emt 0:01:22]} f5 {[%emt 0:01:59]} 14. Ned2 {[%emt 0:00:09]} Bd7 {[%emt 0:01:22]} 15. e4 {[%emt 0:04:19]} dxe3 {[%emt 0:02:20]} 16. fxe3 {[%emt 0:00:06]} Bc5 {[%emt 0:00:06]} 17. Rbe1 {[%emt 0:04:17]} Qf6 {[%emt 0:03:36]} 18. Kh1 {[%emt 0:00:53]} Kh8 {[%emt 0:00:48]} 19. Ng1 {[%emt 0:01:54]} Qd6 {[%emt 0:01:07]} 20. Bd5 {[%emt 0:00:34]} Nd8 {[%emt 0:00:54]} 21. Bg2 {[%emt 0:10:06]} Qb6 {[%emt 0:07:04]} 22. e4 {[%emt 0:03:04]} f4 {[%emt 0:03:12]} 23. Ngf3 {[%emt 0:02:08]} Qd6 {[%emt 0:01:11]} 24. Nb1 {[%emt 0:01:12]} g5 {[%emt 0:01:54]} 25. Qc3 {[%emt 0:00:30]} Nc6 {[%emt 0:00:45]} 26. gxf4 {[%emt 0:01:02]} gxf4 {[%emt 0:02:23]} 27. Nh4 {[%emt 0:02:01]} Nd4 {[%emt 0:01:34]} 28. Nd2 {[%emt 0:00:26]} Rg8 {[%emt 0:02:45]} 29. Nf5 {[%emt 0:02:02]} Nxf5 {[%emt 0:02:28]} 30. exf5 {[%emt 0:00:03]} Bd4 {[%emt 0:00:24]} 31. Qb4 {[%emt 0:02:27]} Bxf5 {[%emt 0:01:48]} 32. Qxd6 {[%emt 0:00:28]} cxd6 {[%emt 0:00:02]} 33. Ne4 {[%emt 0:00:40]} Bxb2 {[%emt 0:04:28]} 34. Rb1 {[%emt 0:00:31]} Bxa3 {[%emt 0:00:08]} 35. Rxb7 {[%emt 0:00:02]} Rg7 {[%emt 0:00:57]} 36. Rfb1 {[%emt 0:00:32]} Ra6 {[%emt 0:00:46]} 37. Rb8+ {[%emt 0:00:15]} Kh7 {[%emt 0:00:13]} 38. Nf6+ {[%emt 0:00:16]} Kg6 {[%emt 0:00:05]} 39. Nd5 {[%emt 0:01:00]} Bc5 {[%emt 0:01:13]} 40. Nc3 {[%emt 0:01:12]} Bxd3 {[%emt 0:01:22]} 41. Be4+ {[%emt 0:00:19]} Bxe4+ {[%emt 0:00:05]} 42. Nxe4 {[%emt 0:00:01]} Bd4 {[%emt 0:00:54]} 43. Rf8 {[%emt 0:00:09]} a3 {[%emt 0:00:25]} 44. Rf6+ {[%emt 0:00:07]} Kh7 {[%emt 0:00:23]} 45. Rf8 {[%emt 0:00:26]} a2 {[%emt 0:00:16]} 46. Nf6+ {[%emt 0:00:09]} Kg6 {[%emt 0:00:02]} 0-1

[Event "Lidkoping Open 2019"]
[Site "Lidkoping"]
[Date "2019.08.24"]
[Round "2.22"]
[White "Olsson, Bo"]
[Black "Olsson, Stefan"]
[Result "1-0"]
[ECO "E60"]
[WhiteElo "1984"]
[BlackElo "1860"]
[Annotator "NA"]
[PlyCount "50"]
[EventDate "2019.08.19"]
[EventType "swiss"]
[EventCountry "SWE"]
[SourceTitle "playchess.com"]
[Source "ChessBase"]
[SourceQuality "1"]
[TimeControl "2700+10"]

1. Nf3 {[%emt 0:00:00]} Nf6 {[%emt 0:00:00]} 2. c4 {[%emt 0:00:00]} g6 {[%emt 0:00:04]} 3. b3 {[%emt 0:00:08]} Bg7 {[%emt 0:00:03]} 4. Bb2 {[%emt 0:00:07]} d6 {[%emt 0:00:14]} 5. d4 {[%emt 0:00:11]} O-O {[%emt 0:00:26]} 6. g3 {[%emt 0:00:06]} c5 {[%emt 0:02:17]} 7. Bg2 {[%emt 0:00:44]} Na6 {[%emt 0:01:23]} 8. O-O {[%emt 0:00:29]} Rb8 {[%emt 0:00:06]} 9. Nc3 {[%emt 0:01:05]} Nc7 {[%emt 0:01:44]} 10. dxc5 {[%emt 0:04:56]} dxc5 {[%emt 0:00:54]} 11. Qc1 {[%emt 0:03:36]} Bf5 {[%emt 0:06:58]} 12. Nh4 {[%emt 0:05:50]} Bd7 {[%emt 0:01:34]} 13. Rd1 {[%emt 0:00:36]} Qe8 {[%emt 0:01:44]} 14. h3 {[%emt 0:05:12]} Qc8 {[%emt 0:05:27]} 15. Kh2 {[%emt 0:00:14]} a6 {[%emt 0:00:03]} 16. e4 {[%emt 0:04:08]} Bc6 {[%emt 0:04:05]} 17. Nd5 {[%emt 0:00:41]} Bxd5 {[%emt 0:03:40]} 18. cxd5 {[%emt 0:00:15]} Nd7 {[%emt 0:08:07]} 19. Bxg7 {[%emt 0:00:49]} Kxg7 {[%emt 0:00:02]} 20. Qe3 {[%emt 0:01:52]} e5 {[%emt 0:01:20]} 21. dxe6 {[%emt 0:03:29]} Nxe6 {[%emt 0:00:04]} 22. f4 {[%emt 0:01:12]} Re8 {[%emt 0:02:18]} 23. Nf3 {[%emt 0:01:42]} b5 {[%emt 0:00:37]} 24. Rac1 {[%emt 0:01:55]} Kg8 {[%emt 0:04:31]} 25. e5 {[%emt 0:04:30]} Qc7 {[%emt 0:01:29]} 1-0